[Event "Titled Tuesday Blitz May 17 Early 2022"]
[White "Sadhwani, Raunak"]
[Black "Preotu, Razvan"]
[WhiteFideId "35093487"]
[BlackFideId "2613280"]
[WhiteElo "2616"]
[BlackElo "2407"]
[Result "1-0"]
[Round "06"]
[TimeControl "180+1"]
[Date "2022.05.17"]
[WhiteClock "0:00:21"]
[BlackClock "0:00:07"]

1. e4 {[%clk 0:03:00]}  c5 {[%clk 0:03:00]} 2. Nf3 {[%clk 0:03:01]}  d6 {[%clk 0:02:59]} 3. d4 {[%clk 0:03:02]}  cxd4 {[%clk 0:03:00]} 4. Nxd4 {[%clk 0:03:02]}  Nf6 {[%clk 0:03:00]} 5. Nc3 {[%clk 0:03:01]}  a6 {[%clk 0:03:00]} 6. h3 {[%clk 0:03:01]}  e5 {[%clk 0:02:59]} 7. Nb3 {[%clk 0:03:01]}  Be7 {[%clk 0:02:53]} 8. g4 {[%clk 0:03:01]}  h6 {[%clk 0:02:50]} 9. Be3 {[%clk 0:03:00]}  Be6 {[%clk 0:02:46]} 10. Qf3 {[%clk 0:03:00]}  Nbd7 {[%clk 0:02:43]} 11. O-O-O {[%clk 0:02:58]}  Nf8 {[%clk 0:02:03]} 12. Nc5 {[%clk 0:02:49]}  Bc8 {[%clk 0:02:01]} 13. Nb3 {[%clk 0:02:21]}  Ng6 {[%clk 0:01:58]} 14. Qe2 {[%clk 0:02:13]}  Be6 {[%clk 0:01:39]} 15. f3 {[%clk 0:02:11]}  Rc8 {[%clk 0:01:38]} 16. h4 {[%clk 0:02:04]}  Rxc3 {[%clk 0:01:25]} 17. bxc3 {[%clk 0:02:05]}  h5 {[%clk 0:01:09]} 18. g5 {[%clk 0:02:02]}  Nd7 {[%clk 0:01:09]} 19. Bh3 {[%clk 0:01:58]}  Qc7 {[%clk 0:01:05]} 20. Bxe6 {[%clk 0:01:51]}  fxe6 {[%clk 0:01:05]} 21. Kb1 {[%clk 0:01:50]}  Nb6 {[%clk 0:01:00]} 22. Bxb6 {[%clk 0:01:48]}  Qxb6 {[%clk 0:01:01]} 23. Qc4 {[%clk 0:01:48]}  Nf4 {[%clk 0:01:00]} 24. Qc8+ {[%clk 0:01:32]}  Bd8 {[%clk 0:00:59]} 25. Qc4 {[%clk 0:01:32]}  O-O {[%clk 0:00:55]} 26. Qb4 {[%clk 0:01:32]}  Qc7 {[%clk 0:00:37]} 27. Qxd6 {[%clk 0:01:12]}  Qxc3 {[%clk 0:00:37]} 28. Rhf1 {[%clk 0:00:59]}  b6 {[%clk 0:00:30]} 29. Qd7 {[%clk 0:00:42]}  a5 {[%clk 0:00:23]} 30. a4 {[%clk 0:00:38]}  Qc4 {[%clk 0:00:20]} 31. Qb5 {[%clk 0:00:33]}  Qxb5 {[%clk 0:00:20]} 32. axb5 {[%clk 0:00:34]}  Ng6 {[%clk 0:00:21]} 33. Rh1 {[%clk 0:00:31]}  Be7 {[%clk 0:00:18]} 34. Nd2 {[%clk 0:00:28]}  Bc5 {[%clk 0:00:17]} 35. c3 {[%clk 0:00:25]}  Rf4 {[%clk 0:00:17]} 36. Kc2 {[%clk 0:00:22]}  Nxh4 {[%clk 0:00:16]} 37. Nc4 {[%clk 0:00:23]}  Nxf3 {[%clk 0:00:16]} 38. g6 {[%clk 0:00:23]}  h4 {[%clk 0:00:13]} 39. Rd8+ {[%clk 0:00:23]}  Bf8 {[%clk 0:00:10]} 40. Nxb6 {[%clk 0:00:23]}  Ng5 {[%clk 0:00:06]} 41. Nd7 {[%clk 0:00:21]}  h3 {[%clk 0:00:06]} 42. Rxf8+ {[%clk 0:00:20]}  Rxf8 {[%clk 0:00:07]} 43. Nxf8 {[%clk 0:00:21]}  Kxf8 {[%clk 0:00:07]} 44. b6 {[%clk 0:00:21]} 1-0


[Site "https://www.chess.com"]

[Event "Titled Tuesday Blitz May 17 Early 2022"]
[White "Seo, Jung Min"]
[Black "Aakanksha Hagawane"]
[WhiteFideId "1734687"]
[BlackFideId "25014510"]
[WhiteElo "2401"]
[BlackElo "1971"]
[Result "1-0"]
[Round "06"]
[TimeControl "180+1"]
[Date "2022.05.17"]
[WhiteClock "0:01:34"]
[BlackClock "0:00:12"]

1. d4 {[%clk 0:03:00]}  Nf6 {[%clk 0:02:59]} 2. c4 {[%clk 0:03:01]}  c5 {[%clk 0:02:59]} 3. d5 {[%clk 0:03:01]}  e6 {[%clk 0:03:00]} 4. Nc3 {[%clk 0:03:00]}  exd5 {[%clk 0:03:00]} 5. cxd5 {[%clk 0:03:01]}  d6 {[%clk 0:03:00]} 6. e4 {[%clk 0:03:01]}  g6 {[%clk 0:03:01]} 7. h3 {[%clk 0:03:00]}  Bg7 {[%clk 0:03:01]} 8. Nf3 {[%clk 0:03:00]}  O-O {[%clk 0:03:00]} 9. Bd3 {[%clk 0:02:59]}  b5 {[%clk 0:02:58]} 10. Nxb5 {[%clk 0:02:55]}  Re8 {[%clk 0:02:50]} 11. O-O {[%clk 0:02:49]}  Nxe4 {[%clk 0:02:38]} 12. Re1 {[%clk 0:02:49]}  a6 {[%clk 0:02:35]} 13. Na3 {[%clk 0:02:48]}  Nf6 {[%clk 0:02:32]} 14. Rxe8+ {[%clk 0:02:48]}  Qxe8 {[%clk 0:02:31]} 15. Nc4 {[%clk 0:02:48]}  Bf8 {[%clk 0:02:10]} 16. Bf4 {[%clk 0:02:43]}  Nxd5 {[%clk 0:01:50]} 17. Bxd6 {[%clk 0:02:42]}  Nb4 {[%clk 0:01:25]} 18. Bxf8 {[%clk 0:02:35]}  Nxd3 {[%clk 0:01:24]} 19. Bh6 {[%clk 0:02:28]}  Bf5 {[%clk 0:01:07]} 20. g4 {[%clk 0:02:06]}  Be4 {[%clk 0:00:59]} 21. Ng5 {[%clk 0:01:57]}  Nd7 {[%clk 0:00:17]} 22. Nd6 {[%clk 0:01:56]}  Qe5 {[%clk 0:00:15]} 23. Ngxe4 {[%clk 0:01:52]}  Qd4 {[%clk 0:00:13]} 24. Be3 {[%clk 0:01:37]}  Qxb2 {[%clk 0:00:12]} 25. Rb1 {[%clk 0:01:34]} 1-0


[Site "https://www.chess.com"]

[Event "Titled Tuesday Blitz May 17 Early 2022"]
[White "Svane, Rasmus"]
[Black "Abdusattorov, Nodirbek"]
[WhiteFideId "4657101"]
[BlackFideId "14204118"]
[WhiteElo "2674"]
[BlackElo "2663"]
[Result "0-1"]
[Round "06"]
[TimeControl "180+1"]
[Date "2022.05.17"]
[WhiteClock "0:00:06"]
[BlackClock "0:00:53"]

1. Nf3 {[%clk 0:03:00]}  Nf6 {[%clk 0:02:59]} 2. g3 {[%clk 0:03:01]}  g6 {[%clk 0:02:57]} 3. Bg2 {[%clk 0:03:01]}  Bg7 {[%clk 0:02:58]} 4. O-O {[%clk 0:03:02]}  O-O {[%clk 0:02:59]} 5. d4 {[%clk 0:03:02]}  d5 {[%clk 0:02:59]} 6. c4 {[%clk 0:03:02]}  c6 {[%clk 0:03:00]} 7. Qb3 {[%clk 0:03:02]}  dxc4 {[%clk 0:03:00]} 8. Qxc4 {[%clk 0:03:03]}  b5 {[%clk 0:03:01]} 9. Qc3 {[%clk 0:02:47]}  Qb6 {[%clk 0:02:56]} 10. Ne5 {[%clk 0:02:27]}  Nd5 {[%clk 0:02:36]} 11. Qd2 {[%clk 0:02:19]}  Nd7 {[%clk 0:02:32]} 12. e4 {[%clk 0:01:57]}  Nxe5 {[%clk 0:02:24]} 13. dxe5 {[%clk 0:01:58]}  Nc7 {[%clk 0:02:23]} 14. Qg5 {[%clk 0:01:51]}  Qc5 {[%clk 0:02:11]} 15. Nc3 {[%clk 0:01:27]}  Qxe5 {[%clk 0:02:07]} 16. Qh4 {[%clk 0:01:16]}  Bf6 {[%clk 0:02:06]} 17. Qh6 {[%clk 0:01:17]}  Ne6 {[%clk 0:02:04]} 18. Kh1 {[%clk 0:01:09]}  b4 {[%clk 0:02:00]} 19. Nd1 {[%clk 0:00:47]}  Ba6 {[%clk 0:01:59]} 20. Re1 {[%clk 0:00:48]}  Nc5 {[%clk 0:01:40]} 21. f4 {[%clk 0:00:41]}  Qc7 {[%clk 0:01:38]} 22. Be3 {[%clk 0:00:37]}  Nd3 {[%clk 0:01:37]} 23. Re2 {[%clk 0:00:30]}  Bg7 {[%clk 0:01:28]} 24. Qh4 {[%clk 0:00:28]}  Nxf4 {[%clk 0:01:26]} 25. Bxf4 {[%clk 0:00:27]}  e5 {[%clk 0:01:27]} 26. Rf2 {[%clk 0:00:23]}  exf4 {[%clk 0:01:27]} 27. gxf4 {[%clk 0:00:24]}  Bd4 {[%clk 0:01:25]} 28. Rf3 {[%clk 0:00:24]}  Rad8 {[%clk 0:01:19]} 29. Ne3 {[%clk 0:00:20]}  Bxb2 {[%clk 0:01:19]} 30. Rg1 {[%clk 0:00:20]}  Bd4 {[%clk 0:01:17]} 31. Rh3 {[%clk 0:00:20]}  f6 {[%clk 0:01:17]} 32. Re1 {[%clk 0:00:11]}  Bc8 {[%clk 0:01:17]} 33. Rg3 {[%clk 0:00:10]}  Rf7 {[%clk 0:01:12]} 34. Nf5 {[%clk 0:00:07]}  Bxf5 {[%clk 0:00:59]} 35. exf5 {[%clk 0:00:08]}  Rg7 {[%clk 0:00:58]} 36. fxg6 {[%clk 0:00:08]}  hxg6 {[%clk 0:00:59]} 37. Rf1 {[%clk 0:00:06]}  f5 {[%clk 0:00:58]} 38. Qg5 {[%clk 0:00:06]}  Qd6 {[%clk 0:00:55]} 39. Bxc6 {[%clk 0:00:05]}  Bf6 {[%clk 0:00:54]} 40. Bd5+ {[%clk 0:00:05]}  Qxd5+ {[%clk 0:00:53]} 41. Rg2 {[%clk 0:00:06]}  Bxg5 {[%clk 0:00:53]} 0-1


[Site "https://www.chess.com"]

[Event "Titled Tuesday Blitz May 17 Early 2022"]
[White "Tarigan, Gilbert Elroy"]
[Black "Vasquez Schroeder, Rodrigo"]
[WhiteFideId "7108133"]
[BlackFideId "3400042"]
[WhiteElo "1908"]
[BlackElo "2567"]
[Result "1-0"]
[Round "06"]
[TimeControl "180+1"]
[Date "2022.05.17"]
[WhiteClock "0:00:28"]
[BlackClock "0:00:17"]

1. e4 {[%clk 0:03:00]}  c5 {[%clk 0:02:59]} 2. Nf3 {[%clk 0:03:00]}  d6 {[%clk 0:03:00]} 3. d4 {[%clk 0:02:59]}  cxd4 {[%clk 0:03:00]} 4. Nxd4 {[%clk 0:03:00]}  Nf6 {[%clk 0:03:00]} 5. Nc3 {[%clk 0:03:00]}  a6 {[%clk 0:03:00]} 6. Bg5 {[%clk 0:02:59]}  e6 {[%clk 0:03:00]} 7. f4 {[%clk 0:02:58]}  Nbd7 {[%clk 0:03:01]} 8. Qf3 {[%clk 0:02:58]}  Qc7 {[%clk 0:03:01]} 9. O-O-O {[%clk 0:02:56]}  b5 {[%clk 0:03:01]} 10. Bd3 {[%clk 0:02:51]}  Bb7 {[%clk 0:02:58]} 11. Rhe1 {[%clk 0:02:43]}  h6 {[%clk 0:02:59]} 12. Bxf6 {[%clk 0:02:33]}  Nxf6 {[%clk 0:02:58]} 13. Qh3 {[%clk 0:02:29]}  O-O-O {[%clk 0:02:49]} 14. a3 {[%clk 0:02:25]}  Kb8 {[%clk 0:02:48]} 15. f5 {[%clk 0:02:21]}  e5 {[%clk 0:02:43]} 16. Nb3 {[%clk 0:02:19]}  h5 {[%clk 0:02:34]} 17. Qf3 {[%clk 0:02:16]}  Qb6 {[%clk 0:02:31]} 18. Kb1 {[%clk 0:02:11]}  Rc8 {[%clk 0:02:30]} 19. Nc1 {[%clk 0:02:00]}  b4 {[%clk 0:02:08]} 20. axb4 {[%clk 0:01:59]}  Qxb4 {[%clk 0:02:09]} 21. N1a2 {[%clk 0:01:58]}  Qb6 {[%clk 0:02:08]} 22. Qe3 {[%clk 0:01:53]}  Qa5 {[%clk 0:01:53]} 23. Qe2 {[%clk 0:01:44]}  Rc7 {[%clk 0:01:35]} 24. Bc4 {[%clk 0:01:43]}  Nxe4 {[%clk 0:01:13]} 25. Nxe4 {[%clk 0:01:33]}  d5 {[%clk 0:01:14]} 26. Bd3 {[%clk 0:01:30]}  dxe4 {[%clk 0:01:12]} 27. Bxe4 {[%clk 0:01:31]}  Bc8 {[%clk 0:01:00]} 28. Rd8 {[%clk 0:01:26]}  Rxc2 {[%clk 0:00:52]} 29. Qxc2 {[%clk 0:01:19]}  Qxd8 {[%clk 0:00:52]} 30. Qc6 {[%clk 0:01:16]}  Qd7 {[%clk 0:00:34]} 31. Qa8+ {[%clk 0:01:12]}  Kc7 {[%clk 0:00:34]} 32. Nc3 {[%clk 0:00:46]}  Bc5 {[%clk 0:00:31]} 33. Nd5+ {[%clk 0:00:40]}  Kd8 {[%clk 0:00:28]} 34. Rc1 {[%clk 0:00:40]}  Qa4 {[%clk 0:00:19]} 35. Qxc8+ {[%clk 0:00:30]}  Kxc8 {[%clk 0:00:17]} 36. Nb6+ {[%clk 0:00:30]}  Kb8 {[%clk 0:00:17]} 37. Nxa4 {[%clk 0:00:31]}  Bd4 {[%clk 0:00:17]} 38. Rc6 {[%clk 0:00:28]} 1-0


[Site "https://www.chess.com"]

[Event "Titled Tuesday Blitz May 17 Early 2022"]
[White "Yeletsky, Ivan"]
[Black "Bortnyk, Olexandr"]
[WhiteFideId "24180327"]
[BlackFideId "14120828"]
[WhiteElo "2319"]
[BlackElo "2723"]
[Result "0-1"]
[Round "06"]
[TimeControl "180+1"]
[Date "2022.05.17"]
[WhiteClock "0:00:08"]
[BlackClock "0:02:10"]

1. e4 {[%clk 0:03:00]}  Nf6 {[%clk 0:02:57]} 2. e5 {[%clk 0:03:01]}  Nd5 {[%clk 0:02:57]} 3. d4 {[%clk 0:03:02]}  d6 {[%clk 0:02:57]} 4. c4 {[%clk 0:03:02]}  Nb6 {[%clk 0:02:57]} 5. f4 {[%clk 0:03:02]}  dxe5 {[%clk 0:02:58]} 6. fxe5 {[%clk 0:03:02]}  Bf5 {[%clk 0:02:59]} 7. Nc3 {[%clk 0:02:59]}  e6 {[%clk 0:02:59]} 8. Be3 {[%clk 0:02:57]}  Bb4 {[%clk 0:03:00]} 9. Nf3 {[%clk 0:02:55]}  c5 {[%clk 0:03:00]} 10. a3 {[%clk 0:02:16]}  cxd4 {[%clk 0:02:59]} 11. Bxd4 {[%clk 0:02:09]}  Be7 {[%clk 0:02:59]} 12. c5 {[%clk 0:02:08]}  Nd5 {[%clk 0:02:59]} 13. Nxd5 {[%clk 0:01:52]}  Qxd5 {[%clk 0:03:00]} 14. Be3 {[%clk 0:01:52]}  Qe4 {[%clk 0:02:56]} 15. Qd4 {[%clk 0:01:47]}  Nc6 {[%clk 0:02:56]} 16. Qxe4 {[%clk 0:01:46]}  Bxe4 {[%clk 0:02:57]} 17. Bb5 {[%clk 0:01:17]}  O-O {[%clk 0:02:57]} 18. O-O {[%clk 0:01:11]}  Bxf3 {[%clk 0:02:47]} 19. gxf3 {[%clk 0:01:11]}  Nxe5 {[%clk 0:02:48]} 20. Rad1 {[%clk 0:01:07]}  a6 {[%clk 0:02:47]} 21. Be2 {[%clk 0:01:05]}  Rfd8 {[%clk 0:02:35]} 22. f4 {[%clk 0:00:59]}  Nc6 {[%clk 0:02:26]} 23. b4 {[%clk 0:00:58]}  Rxd1 {[%clk 0:02:23]} 24. Rxd1 {[%clk 0:00:58]}  Rd8 {[%clk 0:02:24]} 25. Rxd8+ {[%clk 0:00:57]}  Bxd8 {[%clk 0:02:25]} 26. Bf3 {[%clk 0:00:57]}  Bc7 {[%clk 0:02:11]} 27. Kf2 {[%clk 0:00:57]}  Kf8 {[%clk 0:02:11]} 28. Ke2 {[%clk 0:00:56]}  Ke8 {[%clk 0:02:11]} 29. Kd3 {[%clk 0:00:55]}  Kd7 {[%clk 0:02:11]} 30. Kc4 {[%clk 0:00:56]}  Kc8 {[%clk 0:02:09]} 31. a4 {[%clk 0:00:52]}  Ne7 {[%clk 0:02:10]} 32. b5 {[%clk 0:00:45]}  axb5+ {[%clk 0:02:10]} 33. axb5 {[%clk 0:00:46]}  Ng6 {[%clk 0:02:11]} 34. f5 {[%clk 0:00:23]}  Ne5+ {[%clk 0:02:10]} 35. Kb4 {[%clk 0:00:07]}  Nxf3 {[%clk 0:02:11]} 36. fxe6 {[%clk 0:00:08]}  fxe6 {[%clk 0:02:10]} 0-1


[Site "https://www.chess.com"]

[Event "Titled Tuesday Blitz May 17 Early 2022"]
[White "Zakhartsov, Vladimir"]
[Black "Hnydiuk, Aleksander"]
[WhiteFideId "4145097"]
[BlackFideId "1109057"]
[WhiteElo "2428"]
[BlackElo "2374"]
[Result "1-0"]
[Round "06"]
[TimeControl "180+1"]
[Date "2022.05.17"]
[WhiteClock "0:01:34"]
[BlackClock "0:00:12"]

1. d4 {[%clk 0:02:50]}  Nf6 {[%clk 0:02:59]} 2. c4 {[%clk 0:02:50]}  c5 {[%clk 0:02:59]} 3. d5 {[%clk 0:02:50]}  b5 {[%clk 0:02:59]} 4. cxb5 {[%clk 0:02:51]}  a6 {[%clk 0:02:59]} 5. e3 {[%clk 0:02:51]}  axb5 {[%clk 0:02:56]} 6. Bxb5 {[%clk 0:02:52]}  Qa5+ {[%clk 0:02:54]} 7. Nc3 {[%clk 0:02:53]}  Bb7 {[%clk 0:02:55]} 8. Bd2 {[%clk 0:02:40]}  Qb6 {[%clk 0:02:54]} 9. a4 {[%clk 0:02:39]}  Nxd5 {[%clk 0:02:51]} 10. Nf3 {[%clk 0:02:39]}  e6 {[%clk 0:02:47]} 11. O-O {[%clk 0:02:38]}  Be7 {[%clk 0:02:47]} 12. e4 {[%clk 0:02:36]}  Nxc3 {[%clk 0:02:09]} 13. Bxc3 {[%clk 0:02:37]}  Bxe4 {[%clk 0:02:09]} 14. Ne5 {[%clk 0:02:27]}  O-O {[%clk 0:02:03]} 15. Nxd7 {[%clk 0:02:25]}  Nxd7 {[%clk 0:02:02]} 16. Qxd7 {[%clk 0:02:26]}  Bd6 {[%clk 0:01:50]} 17. a5 {[%clk 0:02:21]}  Qb8 {[%clk 0:01:50]} 18. Bc6 {[%clk 0:02:17]}  Ra7 {[%clk 0:01:47]} 19. Qxa7 {[%clk 0:02:15]}  Qxa7 {[%clk 0:01:46]} 20. Bxe4 {[%clk 0:02:16]}  Qc7 {[%clk 0:01:28]} 21. g3 {[%clk 0:02:11]}  c4 {[%clk 0:01:06]} 22. a6 {[%clk 0:02:09]}  Bc5 {[%clk 0:01:06]} 23. Ra5 {[%clk 0:02:03]}  Bb6 {[%clk 0:01:02]} 24. Rb5 {[%clk 0:02:01]}  f6 {[%clk 0:00:49]} 25. Ra1 {[%clk 0:01:54]}  Ba7 {[%clk 0:00:44]} 26. Bb4 {[%clk 0:01:38]}  Rb8 {[%clk 0:00:42]} 27. Rb7 {[%clk 0:01:39]}  Rxb7 {[%clk 0:00:40]} 28. axb7 {[%clk 0:01:40]}  Qb6 {[%clk 0:00:25]} 29. Rxa7 {[%clk 0:01:36]}  Qxa7 {[%clk 0:00:16]} 30. Bd6 {[%clk 0:01:35]}  Qa1+ {[%clk 0:00:09]} 31. Kg2 {[%clk 0:01:34]}  Qxb2 {[%clk 0:00:10]} 32. b8=Q+ {[%clk 0:01:34]}  Qxb8 {[%clk 0:00:11]} 33. Bxb8 {[%clk 0:01:34]}  Kf7 {[%clk 0:00:12]} 1-0


[Site "https://www.chess.com"]

[Event "Titled Tuesday Blitz May 17 Early 2022"]
[White "Abdusattorov, Nodirbek"]
[Black "Andreikin, Dmitry"]
[WhiteFideId "14204118"]
[BlackFideId "4158814"]
[WhiteElo "2663"]
[BlackElo "2736"]
[Result "1/2-1/2"]
[Round "07"]
[TimeControl "180+1"]
[Date "2022.05.17"]
[WhiteClock "0:00:21"]
[BlackClock "0:00:11"]

1. c4 {[%clk 0:03:00]}  Nf6 {[%clk 0:03:00]} 2. Nc3 {[%clk 0:03:00]}  c5 {[%clk 0:02:54]} 3. g3 {[%clk 0:03:00]}  g6 {[%clk 0:02:54]} 4. Bg2 {[%clk 0:03:00]}  Bg7 {[%clk 0:02:55]} 5. Nf3 {[%clk 0:03:01]}  O-O {[%clk 0:02:55]} 6. d4 {[%clk 0:02:59]}  cxd4 {[%clk 0:02:53]} 7. Nxd4 {[%clk 0:03:00]}  Nc6 {[%clk 0:02:53]} 8. O-O {[%clk 0:03:00]}  Nxd4 {[%clk 0:02:51]} 9. Qxd4 {[%clk 0:03:01]}  d6 {[%clk 0:02:52]} 10. Qd3 {[%clk 0:02:54]}  a6 {[%clk 0:02:52]} 11. Rd1 {[%clk 0:02:47]}  Bf5 {[%clk 0:02:45]} 12. Qd2 {[%clk 0:02:38]}  Rb8 {[%clk 0:02:40]} 13. Qe1 {[%clk 0:02:24]}  Qc7 {[%clk 0:02:34]} 14. b3 {[%clk 0:02:03]}  b5 {[%clk 0:02:30]} 15. cxb5 {[%clk 0:02:03]}  axb5 {[%clk 0:02:24]} 16. Bb2 {[%clk 0:02:03]}  b4 {[%clk 0:02:21]} 17. Na4 {[%clk 0:02:03]}  Rfc8 {[%clk 0:02:18]} 18. Rac1 {[%clk 0:02:03]}  Qa5 {[%clk 0:02:08]} 19. Rxc8+ {[%clk 0:01:46]}  Rxc8 {[%clk 0:02:09]} 20. Rc1 {[%clk 0:01:47]}  Rxc1 {[%clk 0:01:48]} 21. Qxc1 {[%clk 0:01:48]}  h5 {[%clk 0:01:48]} 22. Qc6 {[%clk 0:01:36]}  Bd7 {[%clk 0:01:38]} 23. Qa8+ {[%clk 0:01:36]}  Qxa8 {[%clk 0:01:38]} 24. Bxa8 {[%clk 0:01:36]}  Bb5 {[%clk 0:01:39]} 25. Kf1 {[%clk 0:01:31]}  Nd7 {[%clk 0:01:37]} 26. Bxg7 {[%clk 0:01:31]}  Kxg7 {[%clk 0:01:38]} 27. Nb2 {[%clk 0:01:28]}  Nc5 {[%clk 0:01:32]} 28. Ke1 {[%clk 0:01:26]}  e6 {[%clk 0:01:31]} 29. Bf3 {[%clk 0:01:23]}  d5 {[%clk 0:01:31]} 30. e3 {[%clk 0:01:23]}  f5 {[%clk 0:01:10]} 31. h4 {[%clk 0:01:08]}  Kf6 {[%clk 0:01:09]} 32. Kd2 {[%clk 0:00:58]}  Ke5 {[%clk 0:01:06]} 33. Nd1 {[%clk 0:00:52]}  Ne4+ {[%clk 0:01:00]} 34. Kc2 {[%clk 0:00:51]}  d4 {[%clk 0:00:59]} 35. exd4+ {[%clk 0:00:51]}  Kxd4 {[%clk 0:01:00]} 36. Kb2 {[%clk 0:00:50]}  Nd2 {[%clk 0:00:30]} 37. Bb7 {[%clk 0:00:50]}  e5 {[%clk 0:00:29]} 38. Ne3 {[%clk 0:00:48]}  Bd3 {[%clk 0:00:24]} 39. a4 {[%clk 0:00:41]}  bxa3+ {[%clk 0:00:24]} 40. Kxa3 {[%clk 0:00:42]}  f4 {[%clk 0:00:24]} 41. gxf4 {[%clk 0:00:39]}  exf4 {[%clk 0:00:25]} 42. Ng2 {[%clk 0:00:28]}  Ke5 {[%clk 0:00:25]} 43. Ne1 {[%clk 0:00:27]}  Be2 {[%clk 0:00:23]} 44. Kb2 {[%clk 0:00:24]}  Kf5 {[%clk 0:00:14]} 45. Bc8+ {[%clk 0:00:23]}  Ke5 {[%clk 0:00:11]} 46. Bb7 {[%clk 0:00:20]}  Kf5 {[%clk 0:00:12]} 47. Bc8+ {[%clk 0:00:20]}  Ke5 {[%clk 0:00:11]} 48. Bb7 {[%clk 0:00:21]} 1/2-1/2


[Site "https://www.chess.com"]

[Event "Titled Tuesday Blitz May 17 Early 2022"]
[White "Artemenko, Oleg"]
[Black "Durarbayli, Vasif"]
[WhiteFideId "14201798"]
[BlackFideId "13402935"]
[WhiteElo "2287"]
[BlackElo "2528"]
[Result "0-1"]
[Round "07"]
[TimeControl "180+1"]
[Date "2022.05.17"]
[WhiteClock "0:00:08"]
[BlackClock "0:00:07"]

1. d4 {[%clk 0:03:00]}  Nf6 {[%clk 0:02:59]} 2. Nc3 {[%clk 0:02:59]}  d5 {[%clk 0:02:56]} 3. Bf4 {[%clk 0:02:59]}  c5 {[%clk 0:02:52]} 4. e4 {[%clk 0:02:59]}  Nxe4 {[%clk 0:02:49]} 5. Nxe4 {[%clk 0:02:59]}  dxe4 {[%clk 0:02:50]} 6. dxc5 {[%clk 0:03:00]}  Qxd1+ {[%clk 0:02:51]} 7. Rxd1 {[%clk 0:03:00]}  Nc6 {[%clk 0:02:50]} 8. Bb5 {[%clk 0:02:59]}  Bd7 {[%clk 0:02:48]} 9. Ne2 {[%clk 0:02:59]}  f6 {[%clk 0:02:46]} 10. Nc3 {[%clk 0:02:56]}  e5 {[%clk 0:02:46]} 11. Be3 {[%clk 0:02:57]}  f5 {[%clk 0:02:42]} 12. O-O {[%clk 0:02:28]}  O-O-O {[%clk 0:02:39]} 13. Bc4 {[%clk 0:02:22]}  Nd4 {[%clk 0:01:57]} 14. b4 {[%clk 0:02:06]}  a5 {[%clk 0:01:44]} 15. a3 {[%clk 0:02:01]}  Nxc2 {[%clk 0:01:43]} 16. Bg5 {[%clk 0:02:00]}  Nxa3 {[%clk 0:01:41]} 17. Be6 {[%clk 0:01:42]}  axb4 {[%clk 0:01:24]} 18. Na4 {[%clk 0:01:15]}  Bxe6 {[%clk 0:01:13]} 19. Rxd8+ {[%clk 0:01:14]}  Kc7 {[%clk 0:01:13]} 20. Be7 {[%clk 0:01:08]}  Bxe7 {[%clk 0:01:06]} 21. Rxh8 {[%clk 0:01:08]}  h6 {[%clk 0:00:59]} 22. Re8 {[%clk 0:00:59]}  Kd7 {[%clk 0:00:56]} 23. Ra8 {[%clk 0:00:59]}  Bb3 {[%clk 0:00:41]} 24. Rc1 {[%clk 0:00:45]}  Kc6 {[%clk 0:00:26]} 25. Rc8+ {[%clk 0:00:29]}  Kb5 {[%clk 0:00:26]} 26. Nb2 {[%clk 0:00:21]}  Nc2 {[%clk 0:00:25]} 27. Rc7 {[%clk 0:00:16]}  Bxc5 {[%clk 0:00:24]} 28. Rxb7+ {[%clk 0:00:17]}  Kc6 {[%clk 0:00:24]} 29. Rxg7 {[%clk 0:00:17]}  e3 {[%clk 0:00:24]} 30. Kf1 {[%clk 0:00:15]}  exf2 {[%clk 0:00:22]} 31. Rg3 {[%clk 0:00:15]}  Nd4 {[%clk 0:00:13]} 32. Nd3 {[%clk 0:00:13]}  Bc2 {[%clk 0:00:13]} 33. Nxc5 {[%clk 0:00:10]}  Kxc5 {[%clk 0:00:14]} 34. Kxf2 {[%clk 0:00:09]}  f4 {[%clk 0:00:10]} 35. Rh3 {[%clk 0:00:09]}  e4 {[%clk 0:00:08]} 36. Ke1 {[%clk 0:00:09]}  e3 {[%clk 0:00:08]} 37. Rxh6 {[%clk 0:00:06]}  b3 {[%clk 0:00:08]} 38. Rh8 {[%clk 0:00:05]}  Kc4 {[%clk 0:00:07]} 39. Rc8+ {[%clk 0:00:05]}  Kd3 {[%clk 0:00:08]} 40. Ra8 {[%clk 0:00:05]}  f3 {[%clk 0:00:08]} 41. gxf3 {[%clk 0:00:03]}  Nxf3+ {[%clk 0:00:09]} 42. Kf1 {[%clk 0:00:04]}  Kd2 {[%clk 0:00:09]} 43. Rca1 {[%clk 0:00:02]}  b2 {[%clk 0:00:07]} 44. R8a2 {[%clk 0:00:02]}  bxa1=Q+ {[%clk 0:00:05]} 45. Rxa1 {[%clk 0:00:03]}  e2+ {[%clk 0:00:06]} 46. Kf2 {[%clk 0:00:03]}  e1=Q+ {[%clk 0:00:06]} 47. Rxe1 {[%clk 0:00:04]}  Nxe1 {[%clk 0:00:07]} 48. h4 {[%clk 0:00:05]}  Nd3+ {[%clk 0:00:08]} 49. Kf3 {[%clk 0:00:05]}  Ne5+ {[%clk 0:00:08]} 50. Kf4 {[%clk 0:00:06]}  Nd7 {[%clk 0:00:08]} 51. Kg4 {[%clk 0:00:07]}  Nf8 {[%clk 0:00:09]} 52. Kg5 {[%clk 0:00:07]}  Nh7+ {[%clk 0:00:10]} 53. Kh6 {[%clk 0:00:06]}  Bd3 {[%clk 0:00:10]} 54. Kg7 {[%clk 0:00:07]}  Kc3 {[%clk 0:00:11]} 55. h5 {[%clk 0:00:07]}  Kd4 {[%clk 0:00:12]} 56. h6 {[%clk 0:00:08]}  Be4 {[%clk 0:00:13]} 57. Kh8 {[%clk 0:00:09]}  Ke5 {[%clk 0:00:14]} 58. Kg7 {[%clk 0:00:09]}  Kf4 {[%clk 0:00:14]} 59. Kf7 {[%clk 0:00:10]}  Kg5 {[%clk 0:00:15]} 60. Kg7 {[%clk 0:00:11]}  Bg6 {[%clk 0:00:15]} 61. Kg8 {[%clk 0:00:10]}  Kxh6 {[%clk 0:00:13]} 62. Kh8 {[%clk 0:00:11]}  Ng5 {[%clk 0:00:12]} 63. Kg8 {[%clk 0:00:11]}  Nf7 {[%clk 0:00:12]} 64. Kf8 {[%clk 0:00:11]}  Kg5 {[%clk 0:00:10]} 65. Kg7 {[%clk 0:00:11]}  Kf5 {[%clk 0:00:10]} 66. Kf8 {[%clk 0:00:11]}  Kf6 {[%clk 0:00:09]} 67. Kg8 {[%clk 0:00:12]}  Bf5 {[%clk 0:00:10]} 68. Kf8 {[%clk 0:00:13]}  Bh7 {[%clk 0:00:10]} 69. Ke8 {[%clk 0:00:13]}  Ne5 {[%clk 0:00:11]} 70. Kd8 {[%clk 0:00:14]}  Ke6 {[%clk 0:00:09]} 71. Kc7 {[%clk 0:00:14]}  Nd7 {[%clk 0:00:10]} 72. Kc6 {[%clk 0:00:14]}  Bd3 {[%clk 0:00:10]} 73. Kc7 {[%clk 0:00:15]}  Bb5 {[%clk 0:00:10]} 74. Kb7 {[%clk 0:00:13]}  Kd6 {[%clk 0:00:10]} 75. Kc8 {[%clk 0:00:13]}  Ne5 {[%clk 0:00:06]} 76. Kd8 {[%clk 0:00:14]}  Nf7+ {[%clk 0:00:06]} 77. Kc8 {[%clk 0:00:14]}  Bc6 {[%clk 0:00:06]} 78. Kb8 {[%clk 0:00:14]}  Ne5 {[%clk 0:00:06]} 79. Kc8 {[%clk 0:00:12]}  Nd7 {[%clk 0:00:05]} 80. Kd8 {[%clk 0:00:12]}  Bd5 {[%clk 0:00:05]} 81. Ke8 {[%clk 0:00:12]}  Bc4 {[%clk 0:00:05]} 82. Kd8 {[%clk 0:00:12]}  Bf7 {[%clk 0:00:06]} 83. Kc8 {[%clk 0:00:12]}  Nc5 {[%clk 0:00:06]} 84. Kb8 {[%clk 0:00:12]}  Kc6 {[%clk 0:00:06]} 85. Kc8 {[%clk 0:00:12]}  Nb7 {[%clk 0:00:06]} 86. Kb8 {[%clk 0:00:13]}  Be6 {[%clk 0:00:05]} 87. Ka7 {[%clk 0:00:13]}  Nc5 {[%clk 0:00:05]} 88. Kb8 {[%clk 0:00:13]}  Kb6 {[%clk 0:00:05]} 89. Ka8 {[%clk 0:00:12]}  Bd7 {[%clk 0:00:06]} 90. Kb8 {[%clk 0:00:13]}  Na6+ {[%clk 0:00:06]} 91. Ka8 {[%clk 0:00:08]}  Bc6# {[%clk 0:00:07]} 0-1


[Site "https://www.chess.com"]